bitfinex-derivatives/quotes_SOLF0:USTF0_20250309
["timestamp","ask_amount","ask_price","bid_price","bid_amount"]
[1741562494712,39.89682445,127.11,127.08,0.05488333]
[1741562495206,0.05682445,127.11,127.08,0.05488333]
[1741562496709,0.05682445,127.11,127.09,7.869]
[1741562496914,0.05682445,127.11,127.08,0.05488333]
[1741562497803,12.1004,127.19,127.09,31.97229607]
[1741562498011,71.81229607,127.23,127.12,31.97229607]
[1741562498515,71.81229607,127.23,127.1,7.9689]
[1741562499009,71.81229607,127.23,127.15,0.05381771]
[1741562499216,0.05878307,127.18,127.15,7.91871771]
[1741562499404,0.05878307,127.18,127.1,7.9689]
[1741562499608,7.864,127.18,127.15,0.05191055]
[1741562500012,7.91414606,127.18,127.15,0.05191055]
[1741562500318,0.05014606,127.18,127.15,0.05191055]
[1741562502819,0.05014606,127.18,127.15,7.91711055]
[1741562503319,0.05014606,127.18,127.15,0.05191055]
[1741562504211,0.05014606,127.18,127.16,7.8644]
[1741562504415,0.05014606,127.18,127.15,0.05191055]
[1741562505917,7.91394606,127.18,127.15,0.05191055]
[1741562507518,0.05014606,127.18,127.15,0.05191055]
[1741562509816,0.05014606,127.18,127.17,7.8641]
[1741562510817,12.1976,127.25,127.17,3.94]
[1741562511019,4.0322,127.25,127.16,8.1192]
[1741562511425,7.8611,127.22,127.16,8.1192]
[1741562511721,4.0322,127.25,127.16,8.1192]
[1741562511927,7.8619,127.21,127.19,0.05611223]
[1741562512122,0.05090034,127.22,127.19,0.05611223]
[1741562512327,7.91210034,127.22,127.19,0.05611223]
[1741562512530,0.05090034,127.22,127.19,0.05611223]
[1741562513026,0.05090034,127.22,127.19,7.91841223]
[1741562513223,0.05090034,127.22,127.19,0.05611223]
[1741562514728,8.2809,127.3,127.19,0.05611223]
[1741562514729,7.8582,127.27,127.19,0.05611223]
[1741562514923,39.78,127.29,127.19,0.05611223]
[1741562515123,12.3844,127.3,127.21,31.97229607]
[1741562515427,52.1644,127.3,127.24,7.8594]
[1741562515613,52.1644,127.3,127.22,3.8205]
[1741562516023,0.05006331,127.27,127.25,0.05367113]
[1741562516421,7.859,127.26,127.25,0.05367113]
[1741562516628,0.05006331,127.27,127.17,3.8205]
[1741562516933,31.97229607,127.29,127.17,3.8205]
[1741562517817,7.8607,127.23,127.22,0.05036809]
[1741562518016,0.05928426,127.24,127.22,0.05036809]
[1741562518227,0.04967674,127.24,127.22,0.05036809]
[1741562518430,7.8604,127.23,127.22,0.05036809]
[1741562518628,0.04967674,127.24,127.22,0.05036809]
[1741562522131,7.8604,127.23,127.22,0.05036809]
[1741562522518,0.04967674,127.24,127.22,0.05036809]
[1741562523127,7.8604,127.23,127.22,0.05036809]
[1741562524824,71.78197281,127.24,127.14,4.1974]
[1741562525025,31.97229607,127.18,127.09,32.18860404]
[1741562525226,71.71229607,127.18,127.09,32.18860404]
[1741562525426,7.8657,127.15,127.09,32.18860404]
[1741562525630,71.71229607,127.18,127.1,6.75096373]
[1741562525924,0.05857525,127.15,127.13,0.05242664]
[1741562526434,3.8509,127.22,127.13,3.99242664]
[1741562526628,3.8509,127.22,127.14,14.78378263]
[1741562527331,3.8509,127.22,127.14,8.0394]
[1741562527729,7.8633,127.19,127.14,3.9878]
[1741562528028,7.92166881,127.19,127.17,0.05462816]
[1741562528225,7.8635,127.18,127.17,0.05462816]
[1741562529128,7.8656,127.15,127.11,4.1733]
[1741562529528,43.7524,127.19,127.11,4.1733]
[1741562529835,7.866,127.14,127.1,4.0516]
[1741562530132,7.8651,127.16,127.1,11.9196]
[1741562530332,0.05464099,127.13,127.11,0.05525182]
[1741562533438,0.05464099,127.13,127.11,7.92265182]
[1741562533636,0.05464099,127.13,127.11,0.05525182]
[1741562533834,39.74,127.2,127.11,0.05525182]
[1741562534141,39.74,127.24,127.14,31.97229607]
[1741562534339,39.74,127.24,127.15,47.614]
[1741562534635,7.86,127.24,127.17,31.97229607]
[1741562534933,79.06047307,127.26,127.16,6.73852174]
[1741562535139,0.05601457,127.22,127.19,0.05996698]
[1741562539034,4.0159,127.29,127.19,71.75226305]
[1741562539338,7.8589,127.26,127.2,7.862]
[1741562539536,4.0159,127.29,127.16,4.1454]
[1741562539738,4.0159,127.29,127.17,8.157]
[1741562539932,4.0159,127.29,127.19,7.8628]
[1741562539933,7.8595,127.25,127.19,7.8628]
[1741562540140,0.0505406,127.24,127.22,0.05106054]
[1741562540432,47.7385,127.31,127.2,39.72]
[1741562540637,0.05279253,127.24,127.22,0.06012123]
[1741562540839,31.97229607,127.3,127.19,71.69229607]
[1741562541037,0.05749415,127.24,127.22,0.05778618]
[1741562541238,31.97229607,127.3,127.17,8.157]
[1741562541444,7.8606,127.23,127.22,0.05797934]
[1741562541744,31.97229607,127.3,127.17,16.0207]
[1741562541745,39.7,127.26,127.17,16.0207]
[1741562541939,7.91279146,127.24,127.21,0.05055655]
[1741562542137,0.05259146,127.24,127.21,0.05055655]
[1741562542537,32.02488753,127.24,127.15,7.8651]
[1741562542944,31.97229607,127.24,127.15,7.8651]
[1741562543244,7.862,127.21,127.16,6.7482587]
[1741562543438,12.2351,127.25,127.16,6.7482587]
[1741562543843,0.05091251,127.22,127.19,0.05780824]
[1741562544045,7.8622,127.2,127.19,0.05780824]
[1741562544645,39.7,127.21,127.19,0.05780824]
[1741562545039,0.05091251,127.22,127.19,0.05780824]
[1741562545440,0.05091251,127.22,127.19,7.92020824]
[1741562545646,0.05091251,127.22,127.2,6.74709782]
[1741562546146,0.05091251,127.22,127.2,14.60909782]
[1741562546546,0.05091251,127.22,127.2,6.74709782]
[1741562546742,0.05091251,127.22,127.19,7.92040824]
[1741562546942,0.05091251,127.22,127.19,0.05780824]
[1741562547251,0.05091251,127.22,127.2,7.8619]
[1741562547549,0.05091251,127.22,127.19,0.05780824]
[1741562547846,0.05091251,127.22,127.2,6.75013462]
[1741562548648,39.7,127.27,127.2,6.75013462]
[1741562548941,39.7,127.27,127.22,7.8606]
[1741562549342,39.7,127.27,127.2,6.75013462]
[1741562549845,7.91483319,127.25,127.22,0.05463765]
[1741562550045,0.05563319,127.25,127.22,0.05463765]
[1741562551647,0.05563319,127.25,127.22,7.91533765]
[1741562555140,0.05563319,127.25,127.22,0.05463765]
[1741562555949,7.91533319,127.25,127.22,0.05463765]
[1741562556150,0.05563319,127.25,127.22,0.05463765]
[1741562557050,0.05563319,127.25,127.23,7.8604]
[1741562557252,0.05563319,127.25,127.22,0.05463765]
[1741562557653,0.05563319,127.25,127.24,7.8597]
[1741562557848,1.36789764,127.36,127.24,71.63229607]
[1741562558155,7.8532,127.35,127.25,10.61523777]
[1741562558355,4.0837,127.36,127.27,31.97229607]
[1741562558760,7.8539,127.34,127.28,6.74153777]
[1741562559058,0.05512054,127.33,127.3,0.05940742]
[1741562560861,7.8552,127.32,127.3,0.05940742]
[1741562561556,7.8554,127.31,127.3,0.05940742]
[1741562561756,0.05512054,127.33,127.3,0.05940742]
[1741562564158,11.9639,127.4,127.3,0.05940742]
[1741562564365,43.7338,127.4,127.29,71.59229607]
[1741562564559,7.8522,127.37,127.29,71.59229607]
[1741562564765,43.7338,127.4,127.29,39.62]
[1741562565455,0.05561246,127.36,127.33,0.05101937]
[1741562565658,7.8536,127.34,127.33,0.05101937]
[1741562567664,43.7391,127.35,127.25,8.0473]
[1741562567967,47.9049,127.35,127.25,8.0473]
[1741562568565,7.8551,127.32,127.27,7.8578]
[1741562568771,47.9049,127.35,127.27,7.8578]
[1741562569070,0.05466298,127.31,127.28,7.91242946]
[1741562569869,0.05466298,127.31,127.28,0.05522946]
[1741562571268,7.8567,127.29,127.28,0.05522946]
[1741562571769,7.8567,127.29,127.28,2.946e-05]
[1741562572071,39.58,127.3,127.21,8.2915]
[1741562573163,7.8589,127.26,127.24,0.05219639]
[1741562573366,0.05578502,127.27,127.24,0.05219639]
[1741562573668,0.05578502,127.27,127.25,7.8591]
[1741562574067,0.05578502,127.27,127.24,0.05219639]
[1741562575869,0.05578502,127.27,127.25,7.8588]
[1741562576572,0.05578502,127.27,127.24,0.05219639]
[1741562576973,7.91398502,127.27,127.24,0.05219639]
[1741562577173,0.05578502,127.27,127.24,0.05219639]
[1741562578176,7.8588,127.26,127.24,0.05219639]
[1741562578373,0.05578502,127.27,127.24,0.05219639]
[1741562578673,7.8591,127.25,127.24,0.05219639]
[1741562579874,3.8649,127.26,127.17,40.18819607]
[1741562580075,3.8649,127.26,127.17,8.2159]
[1741562580274,3.8649,127.26,127.17,16.0797]
[1741562580573,7.8614,127.22,127.18,6.76679438]
[1741562581180,7.8622,127.2,127.19,0.05121951]
[1741562581576,7.8622,127.2,127.12,128.75441617]
[1741562581577,39.56,127.22,127.11,40.11620404]
[1741562581775,7.863,127.19,127.13,7.8661]
[1741562581978,39.56,127.22,127.11,40.11620404]
[1741562582280,7.8629,127.19,127.13,7.8663]
[1741562582583,39.56,127.22,127.13,7.8663]
[1741562582781,0.05873938,127.17,127.15,0.05798671]
[1741562582973,0.05873938,127.17,127.16,7.8647]
[1741562583171,39.58,127.23,127.16,7.8647]
[1741562583374,0.05802987,127.18,127.15,0.05798671]
[1741562583574,71.55229607,127.23,127.13,31.97229607]
[1741562583781,0.05482109,127.18,127.15,0.05975677]
[1741562584678,0.05482109,127.18,127.16,7.8647]
[1741562584975,0.05482109,127.18,127.15,0.05975677]
[1741562585382,0.05482109,127.18,127.15,7.92485677]
[1741562586181,0.05482109,127.18,127.17,7.8641]
[1741562586383,0.05482109,127.18,127.15,0.05975677]
[1741562587782,7.8645,127.17,127.15,0.05975677]
[1741562587978,0.05482109,127.18,127.15,0.05975677]
[1741562588175,39.61482109,127.18,127.15,0.05975677]
[1741562588383,47.47852109,127.18,127.15,0.05975677]
[1741562588585,39.61482109,127.18,127.15,0.05975677]
[1741562588785,7.8647,127.16,127.15,0.05975677]
[1741562589382,39.61482109,127.18,127.15,0.05975677]
[1741562589885,7.8644,127.17,127.15,0.05975677]
[1741562590184,39.61482109,127.18,127.15,0.05975677]
[1741562590386,47.47862109,127.18,127.15,0.05975677]
[1741562590888,0.05482109,127.18,127.15,0.05975677]
[1741562591981,0.05482109,127.18,127.17,7.8641]
[1741562592183,4.1811,127.24,127.16,31.97229607]
[1741562592378,4.1811,127.24,127.17,4.1206]
[1741562592583,4.1811,127.24,127.16,4.2167]
[1741562593084,4.1811,127.24,127.16,12.0809]
[1741562593279,0.05750706,127.21,127.19,0.05670531]
[1741562595180,39.56,127.2,127.14,7.8656]
[1741562595380,39.56,127.2,127.09,47.4832]
[1741562595683,7.8647,127.16,127.09,7.9232]
[1741562595879,71.53229607,127.2,127.09,7.9232]
[1741562596079,0.3875,127.19,127.09,7.9232]
[1741562596284,7.8644,127.17,127.09,7.9232]
[1741562596479,0.05020826,127.15,127.13,0.05583332]
[1741562596977,7.91590826,127.15,127.13,0.05583332]
[1741562597185,47.45590826,127.15,127.13,0.05583332]
[1741562597381,7.8659,127.14,127.13,0.05583332]
[1741562597583,39.59020826,127.15,127.06,3.9402]
[1741562597987,39.54,127.15,127.06,3.9402]
[1741562598787,0.05782473,127.12,127.09,0.05560413]
[1741562600683,7.8706,127.07,127.03,3.9528]
[1741562600888,39.54,127.09,127.0,7.8877]
[1741562601084,39.54,127.09,127.03,7.8726]
[1741562601292,47.4092,127.09,127.0,11.8405]
[1741562601690,47.4092,127.09,127.03,7.8723]
[1741562601891,0.05523515,127.06,127.03,7.92613988]
[1741562602790,0.05523515,127.06,127.03,0.05383988]
[1741562605297,0.05523515,127.06,127.03,7.92603988]
[1741562606099,0.05523515,127.06,127.03,0.05383988]
[1741562607199,0.05523515,127.06,127.05,7.8715]
[1741562609298,0.05523515,127.06,127.04,7.872]
[1741562609599,0.05523515,127.06,127.03,0.05383988]
[1741562610296,0.05523515,127.06,127.05,7.8715]
[1741562610598,0.05523515,127.06,127.03,0.05383988]
[1741562612998,39.52,127.05,127.03,0.05383988]
[1741562617599,7.8721,127.04,127.03,0.05383988]
[1741562622606,20.08561894,127.04,126.97,8.0187]
[1741562623009,20.08561894,127.04,126.98,7.8757]
[1741562623403,7.8737,127.02,126.98,7.8757]
[1741562623802,0.05831453,127.01,126.99,0.06040683]
[1741562625316,7.93231453,127.01,126.99,0.06040683]
[1741562625518,0.05831453,127.01,126.99,0.06040683]
[1741562628412,7.93261453,127.01,126.99,0.06040683]
[1741562629721,7.8746,127.0,126.99,0.06040683]
[1741562632420,27.96021894,127.0,126.99,6.83e-06]
[1741562633318,31.90021894,127.0,126.99,6.83e-06]
[1741562633625,24.02561894,127.0,126.92,4.1424]
[1741562633817,20.08561894,126.98,126.88,162.7463237]
[1741562634017,39.46,126.97,126.88,162.7463237]
[1741562634213,7.8779,126.95,126.9,7.8804]
[1741562634816,0.05787924,126.94,126.91,0.05333906]
[1741562636524,0.05787924,126.94,126.91,4.23493906]
[1741562636724,0.05787924,126.94,126.92,7.8792]
[1741562638626,0.05787924,126.94,126.91,12.11473906]
[1741562638829,0.05787924,126.94,126.91,4.23493906]
[1741562639426,7.93617924,126.94,126.91,0.05333906]
[1741562640227,0.05787924,126.94,126.91,0.05333906]
[1741562640726,7.8794,126.93,126.91,0.05333906]
[1741562640921,20.14349818,126.94,126.91,0.05333906]
[1741562641127,39.46,126.92,126.91,0.05333906]
[1741562642330,47.3396,126.92,126.91,0.05333906]
[1741562643731,67.42521894,126.92,126.91,3.906e-05]
[1741562644638,63.48561894,126.92,126.8,7.9654]
[1741562644837,20.08561894,126.89,126.8,7.9654]
[1741562645238,24.31981894,126.91,126.8,7.9654]
[1741562645742,0.05905063,126.87,126.84,0.05928593]
[1741562645938,39.49905063,126.87,126.84,0.05928593]
[1741562646443,7.8837,126.86,126.84,0.05928593]
[1741562646841,39.49905063,126.87,126.84,0.05928593]
[1741562648041,7.8838,126.86,126.84,0.05928593]
[1741562648641,39.49905063,126.87,126.84,0.05928593]
[1741562649043,59.58466957,126.87,126.84,0.05928593]
[1741562649636,20.14466957,126.87,126.84,0.05928593]
[1741562649844,0.05905063,126.87,126.85,7.8839]
[1741562650045,0.05905063,126.87,126.84,0.05928593]
[1741562651351,7.8836,126.86,126.84,0.05928593]
[1741562651543,0.05905063,126.87,126.84,0.05928593]
[1741562651746,20.14466957,126.87,126.84,0.05928593]
[1741562651945,7.8839,126.85,126.84,0.05928593]
[1741562652446,7.8835,126.86,126.84,0.05928593]
[1741562652647,20.08561894,126.85,126.8,4.0661]
[1741562653242,7.8854,126.83,126.8,4.0661]
[1741562653440,39.44,126.83,126.75,28.18711894]
[1741562653646,39.44,126.83,126.77,4.0809]
[1741562653949,0.05197363,126.8,126.78,0.05988963]
[1741562654639,0.05197363,126.8,126.79,7.8876]
[1741562654842,39.44,126.83,126.78,20.14550857]
[1741562655245,7.8843,126.85,126.8,7.8865]
[1741562655638,7.8843,126.85,126.78,20.08561894]
[1741562655849,7.8843,126.85,126.81,7.8863]
[1741562656042,7.8843,126.85,126.8,0.05268207]
[1741562656249,0.05533881,126.83,126.8,0.05268207]
[1741562657649,7.8864,126.82,126.8,0.05268207]
[1741562658145,0.05533881,126.83,126.8,0.05268207]
[1741562658348,7.8864,126.81,126.8,0.05268207]
[1741562658849,20.14095775,126.83,126.8,0.05268207]
[1741562659748,27.97201894,126.81,126.8,0.05268207]
[1741562659950,67.39201894,126.81,126.8,0.05268207]
[1741562661046,20.08561894,126.79,126.73,3.879]
[1741562661246,39.42,126.81,126.73,23.96461894]
[1741562661442,39.42,126.81,126.75,7.8897]
[1741562661846,39.42,126.81,126.73,23.96461894]
[1741562662042,0.05494674,126.78,126.76,0.06052346]
[1741562662642,7.94344674,126.78,126.76,0.06052346]
[1741562663154,0.05494674,126.78,126.76,0.06052346]
[1741562663354,7.8889,126.77,126.76,0.06052346]
[1741562664055,7.94354674,126.78,126.76,0.06052346]
[1741562664655,0.05494674,126.78,126.76,0.06052346]
[1741562665956,7.8889,126.77,126.76,0.06052346]
[1741562667260,192.0,126.76,126.54,224.18860404]
[1741562667450,20.08561894,126.7,126.63,4.0226]
[1741562667758,59.48561894,126.72,126.63,4.0226]
[1741562668154,59.48561894,126.72,126.63,11.9197]
[1741562668349,0.05075275,126.69,126.63,4.0226]
[1741562668756,7.94485275,126.69,126.63,4.0226]
[1741562668959,0.05075275,126.69,126.63,4.0226]
[1741562669159,0.05075275,126.69,126.64,7.8967]
[1741562669559,0.05075275,126.69,126.64,20.08561894]
[1741562669754,0.05075275,126.69,126.65,7.8963]
[1741562670059,59.48561894,126.76,126.66,20.08561894]
[1741562670260,59.48561894,126.76,126.67,7.8947]
[1741562670660,59.48561894,126.76,126.68,4.1062]
[1741562671163,0.05958525,126.73,126.71,0.05704707]
[1741562671460,7.8921,126.72,126.71,0.05704707]
[1741562672059,0.05958525,126.73,126.71,0.05704707]
[1741562672364,7.892,126.72,126.71,0.05704707]
[1741562673466,7.892,126.72,126.71,4.707e-05]
[1741562673764,0.05958525,126.73,126.67,4.1467]
[1741562673964,4.10608525,126.73,126.67,4.1467]
[1741562674262,7.95158525,126.73,126.67,4.1467]
[1741562674665,0.05958525,126.73,126.67,4.1467]
[1741562674865,0.05958525,126.73,126.68,3.903]
[1741562675272,0.05958525,126.73,126.69,11.96]
[1741562675762,0.05958525,126.73,126.69,4.0665]
[1741562676563,0.05958525,126.73,126.68,3.903]
[1741562676968,7.893,126.71,126.68,3.903]
[1741562677170,0.05958525,126.73,126.67,4.1467]
[1741562677467,7.8937,126.7,126.67,4.1467]
[1741562677767,0.05548449,126.71,126.67,4.1467]
[1741562677965,7.8936,126.7,126.67,4.1467]
[1741562678161,0.05548449,126.71,126.67,4.1467]
[1741562679163,7.8898,126.76,126.68,32.29810992]
[1741562679366,71.67810992,126.78,126.68,32.29810992]
[1741562679562,7.8909,126.74,126.7,7.893]
[1741562679762,71.67810992,126.78,126.68,32.29810992]
[1741562679958,71.67810992,126.78,126.67,4.1467]
[1741562680157,7.8924,126.72,126.68,7.8942]
[1741562680469,71.67810992,126.78,126.71,0.05548449]
[1741562680668,7.8906,126.75,126.71,0.05548449]
[1741562680971,0.05983577,126.76,126.73,0.05548449]
[1741562681163,71.67810992,126.78,126.69,7.8937]
[1741562681366,0.05214228,126.76,126.73,0.05152453]
[1741562682374,7.8908,126.74,126.73,0.05152453]
[1741562683873,7.8908,126.74,126.73,2.453e-05]
[1741562684971,32.29810992,126.72,126.67,4.1467]
[1741562685173,39.36,126.71,126.67,4.1467]
[1741562685480,47.253,126.71,126.67,4.1467]
[1741562686074,0.05311207,126.7,126.67,4.1467]
[1741562686275,7.94651207,126.7,126.67,4.1467]
[1741562686774,7.94651207,126.7,126.61,39.36]
[1741562686775,7.8943,126.69,126.61,39.34]
[1741562686971,7.8943,126.69,126.65,4.1655]
[1741562687172,0.05625918,126.66,126.65,4.1655]
[1741562687475,0.0555124,126.67,126.65,4.1655]
[1741562687774,0.0555124,126.67,126.66,7.8957]
[1741562688077,39.34,126.74,126.65,8.1055]
[1741562688377,39.34,126.77,126.67,32.29810992]
[1741562688570,39.34,126.77,126.68,8.2363]
[1741562689074,7.8888,126.78,126.7,32.29810992]
[1741562689269,0.0597948,126.74,126.71,0.05470751]
[1741562689471,10.76608115,126.79,126.7,32.29810992]
[1741562689772,18.65428115,126.79,126.7,32.29810992]
[1741562689977,10.76608115,126.79,126.7,32.29810992]
[1741562690175,7.8889,126.77,126.7,32.29810992]
[1741562690370,10.76608115,126.79,126.7,32.29810992]
[1741562690571,0.05712625,126.76,126.73,0.05830609]
[1741562690971,0.05712625,126.76,126.74,7.8906]
[1741562692878,0.05712625,126.76,126.73,0.05830609]
[1741562694680,39.37712625,126.76,126.73,0.05830609]
[1741562694982,47.26692625,126.76,126.73,0.05830609]
[1741562695976,0.05712625,126.76,126.73,0.05830609]
[1741562696371,0.05712625,126.76,126.74,7.8902]
[1741562696683,0.05712625,126.76,126.73,0.05830609]
[1741562696883,10.76608115,126.81,126.73,0.05830609]
[1741562697180,18.65278115,126.81,126.72,39.3]
[1741562697374,10.76608115,126.81,126.72,39.3]
[1741562697574,10.76608115,126.81,126.76,7.8891]
[1741562697775,10.76608115,126.81,126.73,3.9565]
[1741562697976,7.8869,126.81,126.74,3.8823]
[1741562698176,0.05570932,126.78,126.76,0.05227693]
[1741562698980,0.05570932,126.78,126.77,7.8884]
[1741562699277,0.05570932,126.78,126.76,0.05227693]
[1741562702278,32.29810992,126.84,126.76,0.05227693]
[1741562702476,39.28,126.86,126.75,43.4341]
[1741562702875,43.058177,126.87,126.77,32.29810992]
[1741562703179,43.058177,126.87,126.8,32.29810992]
[1741562703380,2.141e-05,126.83,126.81,3.99357455]
[1741562703578,43.058177,126.87,126.81,3.99357455]
[1741562703777,36.692177,126.87,126.86,7.8833]
[1741562703982,23.960177,126.87,126.86,7.8833]
[1741562704188,23.960177,126.87,126.83,32.29810992]
[1741562704385,23.960177,126.87,126.84,7.8841]
[1741562704580,23.960177,126.87,126.81,3.9339]
[1741562704886,24.01823619,126.87,126.84,0.06033401]
[1741562705581,24.01823619,126.87,126.77,7.8885]
[1741562705879,32.29810992,126.85,126.75,8.0149]
[1741562706083,4.1414,126.84,126.75,8.0149]
[1741562706286,32.29810992,126.82,126.75,8.0149]
[1741562706684,32.29810992,126.82,126.76,7.8894]
[1741562706886,0.05115879,126.8,126.77,0.05037649]
[1741562707787,0.05115879,126.8,126.77,7.93907649]
[1741562707985,0.05115879,126.8,126.77,0.05037649]
[1741562711587,7.93835879,126.8,126.77,0.05037649]
[1741562711981,7.8877,126.79,126.77,0.05037649]
[1741562712787,7.8883,126.78,126.77,0.05037649]
[1741562713284,7.8879,126.79,126.77,0.05037649]
[1741562713493,0.05115879,126.8,126.77,0.05037649]
[1741562714089,4.2253,126.89,126.79,32.29810992]
[1741562714381,85.770172,126.91,126.82,32.29810992]
[1741562714786,7.8809,126.9,126.85,7.8834]
[1741562715089,0.05197137,126.89,126.86,0.05393269]
[1741562715388,0.05197137,126.89,126.87,7.8827]
[1741562715580,0.05197137,126.89,126.86,0.05393269]
[1741562716384,4.978e-05,126.9,126.89,7.8814]
[1741562716585,128.4491495,126.91,126.89,32.29810992]
[1741562716785,76.8337495,126.91,126.89,36.23810992]
[1741562716983,76.8337495,126.91,126.9,7.8808]
[1741562717184,27.0894495,126.91,126.9,7.8808]
[1741562717388,268.04874943,126.93,126.9,43.12]
[1741562717585,268.04874943,126.93,126.92,40.17770992]
[1741562717887,268.105295,126.93,126.92,40.17770992]
[1741562718087,175.52749253,126.93,126.92,44.11770992]
[1741562718695,79.076821,126.93,126.92,44.11770992]
[1741562718987,593.30971261,127.04,126.92,36.23810992]
[1741562719290,593.30971261,127.04,126.97,32.29810992]
[1741562719496,7.874,127.01,126.97,32.29810992]
[1741562719693,593.30971261,127.04,126.95,39.16]
[1741562719894,32.29810992,127.03,126.9,71.45810992]
[1741562720093,0.052957,127.01,126.9,71.45810992]
[1741562720290,593.30971261,127.04,126.95,0.05820696]
[1741562720487,0.05759818,126.97,126.95,0.05820696]
[1741562720689,593.30971261,127.04,126.93,32.29810992]
[1741562720889,0.05419807,126.97,126.95,0.05660399]
[1741562721191,32.29810992,127.03,126.92,39.14]
[1741562721391,0.0526863,126.97,126.96,214.59069362]
[1741562721597,71.43810992,127.0,126.96,176.45419362]
[1741562721796,7.8765,126.97,126.96,176.45419362]
[1741562723398,0.05839567,126.98,126.95,0.05424076]
[1741562723789,7.8765,126.97,126.95,0.05424076]
[1741562723997,0.05839567,126.98,126.95,0.05424076]
[1741562724491,0.05839567,126.98,126.95,32.35235068]
[1741562724693,43.1785,127.06,126.95,32.35235068]
[1741562724997,7.8723,127.04,126.99,7.8748]
[1741562725385,4.0585,127.06,126.98,71.41810992]
[1741562725589,292.33810992,127.11,126.98,71.41810992]
[1741562725797,43.125,127.1,126.98,71.41810992]
[1741562725994,7.8726,127.04,127.03,0.06040806]
[1741562727299,7.8746,127.0,126.99,39.46851464]
[1741562728100,4.005,127.04,126.99,39.46851464]
[1741562728296,71.39810992,127.08,126.96,72.69777733]
[1741562728497,0.05258139,127.03,127.0,0.05447207]
[1741562728698,7.8712,127.06,127.0,7.92897207]
[1741562728899,75.44000992,127.08,127.0,7.8745]
[1741562729593,75.44000992,127.08,126.99,79.32536741]
[1741562729791,7.92368856,127.05,127.03,0.05423911]
[1741562729997,0.05178856,127.05,127.03,0.05423911]
[1741562730202,7.8721,127.04,127.03,0.05423911]
[1741562730592,0.05178856,127.05,127.03,0.05423911]
[1741562732004,0.05178856,127.05,127.04,216.01303692]
[1741562732306,7.8694,127.09,127.04,216.01303692]
[1741562733103,12.2545,127.12,126.99,377.80202976]
[1741562733406,12.2545,127.12,127.02,7.8729]
[1741562733601,0.05633792,127.07,127.04,0.0516777]
[1741562734000,0.05633792,127.07,127.01,7.8739]
[1741562734202,7.92673792,127.07,127.04,0.05436379]
[1741562734400,12.2545,127.12,127.04,0.05436379]
[1741562734600,0.0579372,127.07,127.04,0.05436379]
[1741562734907,0.0579372,127.07,127.01,7.8737]
[1741562735106,0.0579372,127.07,127.04,0.0497765]
[1741562735409,7.8699,127.08,127.04,0.0497765]
[1741562735607,0.05895227,127.07,127.03,7.8723]
[1741562735907,0.05895227,127.07,127.04,0.05044069]
[1741562737807,7.8714,127.06,127.04,0.05044069]
[1741562738103,0.05895227,127.07,127.04,0.05044069]
[1741562738318,7.8715,127.05,127.04,0.05044069]
[1741562738710,32.29810992,127.06,127.0,32.11852245]
[1741562738910,7.874,127.01,127.0,32.11852245]
[1741562739115,7.874,127.01,127.0,6.84066223]
[1741562739509,7.8746,127.0,126.99,32.11852245]
[1741562739709,39.02,127.02,126.97,85.67784695]
[1741562739915,7.8751,127.0,126.98,0.05857167]
[1741562740316,0.05118002,127.01,126.98,0.05857167]
[1741562740512,32.29810992,127.0,126.97,85.67784695]
[1741562741611,7.8758,126.98,126.97,85.67784695]
[1741562741812,7.8758,126.98,126.97,73.54831081]
[1741562742310,32.29810992,127.0,126.83,130.77230397]
[1741562742506,32.29810992,127.0,126.89,4.2068]
[1741562743310,32.29810992,126.97,126.89,4.2068]
[1741562743515,32.29810992,126.97,126.84,32.29810992]
[1741562743516,39.02,126.96,126.87,4.1119]
[1741562743915,7.8797,126.92,126.87,11.9944]
[1741562744818,0.05322797,126.91,126.88,0.05873775]
[1741562745019,0.05322797,126.91,126.87,11.9944]
[1741562745318,0.05322797,126.91,126.88,0.05154191]
[1741562745716,0.05322797,126.91,126.89,7.881]
[1741562745918,0.05322797,126.91,126.88,0.05154191]
[1741562747919,0.05322797,126.91,126.89,7.8809]
[1741562748324,0.05322797,126.91,126.88,0.05154191]
[1741562749227,0.05322797,126.91,126.88,7.93344191]
[1741562750124,0.05322797,126.91,126.88,0.05154191]
[1741562751929,39.0,126.98,126.88,0.05154191]
[1741562752125,39.0,126.98,126.87,4.1119]
[1741562752425,32.29810992,126.96,126.87,4.1119]
[1741562752823,7.8775,126.96,126.92,7.8792]
[1741562753021,0.05494652,126.93,126.9,0.05817303]